Cogmind - Beta 11 @@@ ROGUE MODE // 2022.03.20 @ 00:31:00 Player: hax Result: Destroyed by S-10 Pest with Light Assault Rifle Performance ------------- Evolutions (0) 0 Regions Visited (4) 800 Robots Destroyed (28) 140 Value Destroyed (432) 432 Prototype IDs (2) 40 Alien Tech Used (0) 0 Bonus (300) 300 TOTAL SCORE: 1712 Bonus ------- Aligned with FarCom 300 Cogmind --------- Core Integrity 0/250 Matter 265/300 Energy 125/125 System Corruption 0% Temperature Cool (1) Movement Rolling (110) Ox2 Location -9/Mines Parts ------- > --- POWER (1) -------- Light Ion Engine > --- PROPULSION (2) --- Improved Treads Wheel > --- UTILITY (2) ------ Large Storage Unit Light Armor Plating > --- WEAPON (2) ------- EM Pulse Gun > --- INVENTORY (15) --- Light Treads Aluminum Leg Large Storage Unit Large Battery (200) Large Matter Pod (150) Seismic Detector ECM Suite ECM Suite EM Pulse Gun EM Pulse Gun Small Laser Latent Energy Streamer Light Assault Rifle Mining Claw Peak State ------------ > --- POWER ------------ Light Ion Engine > --- PROPULSION ------- Light Treads Wheel > --- UTILITY ---------- Large Storage Unit Seismic Detector > --- WEAPON ----------- EM Pulse Gun Latent Energy Streamer > --- INVENTORY -------- Light Treads Aluminum Leg Large Storage Unit Large Battery ECM Suite ECM Suite Light Armor Plating EM Pulse Gun EM Pulse Gun Small Laser Grenade Launcher Mining Claw [Rating: 17] Favorites ----------- Power Light Ion Engine Engine Light Ion Engine Propulsion Wheel Treads Light Treads Leg Aluminum Leg Wheel Wheel Utility Seismic Detector Device Seismic Detector Storage Small Storage Unit Protection Light Armor Plating Weapon EM Pulse Gun Energy Gun EM Pulse Gun Energy Cannon Latent Energy Streamer Ballistic Gun Light Assault Rifle Launcher Grenade Launcher Special Weapon Field Lobotomy Kit Slashing Weapon Mining Claw Build | -11 -10 -10 -10 -9 ------- Run | Scr Mat Min Exi Min Slots Evolved . | . . . . . Power . | . . . . . Propulsion . | . . . . . Utility . | . . . . . Weapon . | . . . . . Parts Attached 47 | 6 20 6 5 10 Power 5 | 1 2 1 . 1 Engine 5 | 1 2 1 . 1 Core . | . . . . . Reactor . | . . . . . Propulsion 10 | 2 6 1 . 1 Treads 4 | . 3 . . 1 Leg 2 | 2 . . . . Wheel 4 | . 3 1 . . Hover . | . . . . . Flight . | . . . . . Utility 10 | 1 4 1 1 3 Device 2 | . . 1 . 1 Storage 5 | 1 3 . 1 . Processor . | . . . . . Hackware . | . . . . . Protection 3 | . 1 . . 2 Artifact . | . . . . . Weapon 22 | 2 8 3 4 5 Energy Gun 13 | 2 5 2 2 2 Energy Cannon 1 | . . . 1 . Ballistic Gun 1 | . 1 . . . Ballistic Cannon . | . . . . . Launcher 5 | . 1 1 . 3 Special Weapon 1 | . . . 1 . Impact Weapon . | . . . . . Slashing Weapon 1 | . 1 . . . Piercing Weapon . | . . . . . Special Melee Weapon . | . . . . . Unidentified Prototypes 2 | . . . 2 . Parts Lost 9 | . 8 . . 1 Power 2 | . 2 . . . Propulsion 4 | . 4 . . . Utility . | . . . . . Weapon 3 | . 2 . . 1 Highest Loss Streak 6 | . 6 . . 1 To Critical Strikes . | . . . . . Average Slot Usage (%) 95 | . 90 100 99 100 Engine 13 | . 13 14 14 14 Treads 10 | . 6 14 14 14 Leg 2 | . 5 . . . Wheel 14 | . 15 14 14 14 Device 6 | . . 12 14 6 Storage 16 | . 19 14 14 14 Protection 2 | . 2 1 . 7 Energy Gun 22 | . 16 26 27 25 Ballistic Gun 3 | . 9 . . . Naked Turns . | . . . . . Heaviest Build 31 | 13 20 20 28 31 Greatest Support 26 | 20 26 16 10 10 Greatest Overweight (x) 3 | 2 3 1 2 3 Average Overweight (x) 1 | . . 1 1 2 Largest Inventory Capacity 15 | 8 10 10 15 15 Average Capacity 10 | 7 8 10 12 15 Most Carried 15 | 7 10 10 13 15 Average Carried 9 | 4 7 9 10 14 Final Capacity 15 | 8 10 10 15 15 Final Carried 14 | 7 9 10 12 14 Class Distribution -------------------- 100% | Mutant Dominant Class ---------------- Mutant | -10/Materials Mutant | -10/Mines Mutant | -10/Exiles Mutant | -9/Mines Resources | -11 -10 -10 -10 -9 ----------- Run | Scr Mat Min Exi Min Matter Collected 780 | 260 257 73 . 190 Remotely . | . . . . . Salvage Created 768 | 174 463 64 . 67 Parts 51 | 8 21 8 . 14 Haulers Intercepted 1 | . 1 . . . Recyclers Shooed 1 | . 1 . . . Parts Field Recycled . | . . . . . Retrieved Matter . | . . . . . Parts Self-Destructed . | . . . . . Prevented . | . . . . . Kills | -11 -10 -10 -10 -9 ------- Run | Scr Mat Min Exi Min Combat Hostiles Destroyed 16 | . 9 . . 7 Guns 5 | . 4 . . 1 AOE 10 | . 4 . . 6 Classes Destroyed 8 | 3 4 1 . . Worker 2 | 1 . . . 1 Builder 1 | . . 1 . . Tunneler 5 | 3 . 1 . 1 Hauler 1 | . 1 . . . Recycler 2 | 1 1 . . . Watcher 1 | . 1 . . . Swarmer 10 | . 3 . . 7 Grunt 6 | . 6 . . . Best Kill Streak 5 | 2 5 1 . 4 Combat Bots Only 4 | . 4 . . 4 Max Kills in Single Turn 2 | 1 2 1 . 2 Gunslinging . | . . . . . Exploded 2 | . 2 . . 2 Melee . | . . . . . Uniques/NPCs Destroyed . | . . . . . Combat | -11 -10 -10 -10 -9 -------- Run | Scr Mat Min Exi Min Damage Taken 1315 | 76 1024 22 . 193 Core 250 | 19 203 . . 28 Absorbed by Shields . | . . . . . Regen/Repaired (Parts) 32 | . 32 . . . Core Remaining (%) 92 | 92 . . . . Volleys Fired 85 | 16 54 3 . 12 Largest 2 | 2 2 2 . 2 Hottest 80 | 80 80 80 . 80 Shots Fired 134 | 32 81 6 . 15 Gun 122 | 32 77 6 . 7 Cannon . | . . . . . Launcher 12 | . 4 . . 8 Special . | . . . . . Kinetic 19 | . 19 . . . Thermal 29 | 16 13 . . . Explosive 12 | . 4 . . 8 Electromagnetic 74 | 16 45 6 . 7 Robot Hit Streak 11 | 7 11 6 . 8 Robot Miss Streak 3 | 3 3 . . 1 Penetration Max . | . . . . . Secondary Targets . | . . . . . Shots Hit Robots 82 | 20 53 4 . 5 Core Hits 39 | 6 22 2 . 9 Critical Kills . | . . . . . Critical Parts Destroyed . | . . . . . Critical Strikes 1 | 1 . . . . Corrupt 1 | 1 . . . . Melee Attacks 2 | . 2 . . . Impact . | . . . . . Slashing 2 | . 2 . . . Piercing . | . . . . . Sneak Attacks . | . . . . . Combat Hostiles . | . . . . . Follow-up Attacks . | . . . . . Damage Inflicted 1742 | 317 911 83 . 431 Guns 950 | 241 623 45 . 41 Cannons . | . . . . . Explosions 792 | 76 288 38 . 390 Melee . | . . . . . Ramming . | . . . . . Kinetic 100 | . 100 . . . Thermal 310 | 164 108 38 . . Explosive 658 | . 268 . . 390 Electromagnetic 674 | 153 435 45 . 41 Impact . | . . . . . Slashing . | . . . . . Piercing . | . . . . . Highest Corruption . | . . . . . Average Corruption . | . . . . . Corruption Purged . | . . . . . Corruption Blocked . | . . . . . Overload Shots . | . . . . . Overflow Damage 57 | . 28 27 . 2 Projectiles . | . . . . . Explosions 57 | . 28 27 . 2 Melee . | . . . . . Knockbacks . | . . . . . Impact . | . . . . . Kinetic . | . . . . . Secondary . | . . . . . Self-Inflicted Damage 222 | 76 124 . . 22 Shots 7 | 2 4 . . 1 Rammed . | . . . . . Targets Rammed . | . . . . . Kicked . | . . . . . Crushed . | . . . . . Highest Temperature 399 | 138 399 27 . 27 Average Temperature 93 | 54 121 14 . 13 Received Heat Transfer 480 | . 480 . . . Effects 4 | . 4 . . . Energy Bleed 1 | . 1 . . . Matter Decay 1 | . 1 . . . Short Circuit 1 | . 1 . . . Damage (minor) 1 | . 1 . . . Siege Activations . | . . . . . Robots Corrupted 1 | . 1 . . . Combat Hostiles 1 | . 1 . . . Parts Fried 1 | 1 . . . . Impact Corruptions . | . . . . . Robots Melted . | . . . . . Combat Hostiles . | . . . . . Parts Melted 1 | . 1 . . . Heat Transferred 600 | 300 250 50 . . Parts Sabotaged . | . . . . . Parts Stolen . | . . . . . Parts Stripped . | . . . . . Power Chain Reactions 4 | 2 1 1 . . Missiles Intercepted . | . . . . . Alert | -11 -10 -10 -10 -9 ------- Run | Scr Mat Min Exi Min Peak Influence 305 | 25 222 66 . 305 Initial 33 | . 16 33 . . Average 93 | 7 60 63 . 244 Maximum Alert Level 1 | . 1 . . 1 Low Security (%) 83 | 100 98 100 . 21 Level 1 16 | . 1 . . 78 Level 2 . | . . . . . Level 3 . | . . . . . Level 4 . | . . . . . Level 5 . | . . . . . High Security . | . . . . . Max Security . | . . . . . Squads Dispatched 1 | . 1 . . . Investigation . | . . . . . Extermination . | . . . . . Reinforcement 1 | . 1 . . . Assault . | . . . . . Garrison . | . . . . . Intercept . | . . . . . Searches Triggered . | . . . . . Construction Impeded . | . . . . . Haulers Reinforced . | . . . . . Active Scanning Responses . | . . . . . Cargo Convoy Interrupts . | . . . . . Stealth | -11 -10 -10 -10 -9 --------- Run | Scr Mat Min Exi Min Distress Signals 1 | . 1 . . . Communications Jammed . | . . . . . Distress Signals . | . . . . . Times Spotted 35 | . 25 . . 10 Peak Tracking Total 5 | . 5 . . 4 Tactical Retreats 6 | . 6 . . . Traps | -11 -10 -10 -10 -9 ------- Run | Scr Mat Min Exi Min Traps Triggered . | . . . . . Indirectly . | . . . . . Trap Hack Attempts . | . . . . . Triggered . | . . . . . Disarmed . | . . . . . Reprogrammed . | . . . . . Reused . | . . . . . Traps Extracted . | . . . . . Installed . | . . . . . Triggered . | . . . . . Machines | -11 -10 -10 -10 -9 ---------- Run | Scr Mat Min Exi Min Machines Disabled 3 | . 1 . . 2 Max in Single Turn 2 | . 1 . . 2 Machines Sabotaged . | . . . . . Garrisons Compromised . | . . . . . Overloaded Fab Kills . | . . . . . Hacking | -11 -10 -10 -10 -9 --------- Run | Scr Mat Min Exi Min Machines Accessed 10 | . 7 1 2 . Terminals 6 | . 6 . . . Fabricators . | . . . . . Repair Stations 1 | . 1 . . . Recycling Units . | . . . . . Scanalyzers . | . . . . . Garrison Access . | . . . . . Total Hacks 24 | . 14 1 9 . Successful 21 | . 11 1 9 . Failed 3 | . 3 . . . Catastrophic . | . . . . . Database Lockouts . | . . . . . Manual 5 | . 4 . 1 . Terminals 12 | . 12 . . . Fabricators . | . . . . . Repair Stations 2 | . 2 . . . Recycling Units . | . . . . . Scanalyzers . | . . . . . Garrison Access . | . . . . . Terminal Hacks 16 | . 6 1 9 . Record 9 | . . . 9 . Robot Analysis 1 | . 1 . . . Open Door 1 | . . 1 . . Terminal Index 1 | . 1 . . . Unreport Threat 1 | . 1 . . . Dispatch Records 1 | . 1 . . . Hauler Manifests 1 | . 1 . . . Zone Layout 1 | . 1 . . . Fabricator Hacks . | . . . . . Repair Station Hacks 2 | . 2 . . . Scan Component 1 | . 1 . . . Repair 1 | . 1 . . . Recycling Unit Hacks . | . . . . . Scanalyzer . | . . . . . Garrison Access Hacks . | . . . . . Unauthorized Hacks 3 | . 3 . . . Terminals 3 | . 3 . . . Botnet 3 | . 3 . . . Fabricators . | . . . . . Repair Stations . | . . . . . Recycling Units . | . . . . . Scanalyzers . | . . . . . Garrison Access . | . . . . . Data Cores Recovered . | . . . . . Used . | . . . . . Hacking Detections 5 | . 5 . . . Full Trace Events . | . . . . . Feedback Events . | . . . . . Feedback Blocked . | . . . . . Robot Schematics Acquired . | . . . . . Robots Built . | . . . . . Authchips . | . . . . . Time . | . . . . . Total Robot Build Rating . | . . . . . Part Schematics Acquired . | . . . . . Parts Built . | . . . . . Authchips . | . . . . . Time . | . . . . . Total Part Build Rating . | . . . . . Parts Repaired 1 | . 1 . . . Time 26 | . 26 . . . Parts Recycled . | . . . . . Recycled Matter . | . . . . . Retrieved Matter . | . . . . . Retrieved Components . | . . . . . Parts Scanalyzed . | . . . . . Part Schematics Acquired . | . . . . . Parts Damaged . | . . . . . Bothacking | -11 -10 -10 -10 -9 ------------ Run | Scr Mat Min Exi Min Used RIF Installer . | . . . . . Robots Hacked . | . . . . . Non-combat . | . . . . . Combat . | . . . . . Robot Hacks Applied . | . . . . . Relay Couplers Released . | . . . . . Fabnet Peak Effective % . | . . . . . Robots Rewired . | . . . . . Allies Hacked . | . . . . . Hacks Repelled . | . . . . . Allies | -11 -10 -10 -10 -9 -------- Run | Scr Mat Min Exi Min Total Allies . | . . . . . Largest Group . | . . . . . Highest-Rated Group . | . . . . . Highest-Rated Ally . | . . . . . Total Orders . | . . . . . Ally Attacks . | . . . . . Total Damage . | . . . . . Kills . | . . . . . Allies Corrupted . | . . . . . Allies Melted . | . . . . . Intel | -11 -10 -10 -10 -9 ------- Run | Scr Mat Min Exi Min Robot Analysis Total 1 | . 1 . . . Derelict Logs Recovered 2 | . . 1 . 1 Drone Launches . | . . . . . Drone Recoveries . | . . . . . Exploration | -11 -10 -10 -10 -9 ------------- Run | Scr Mat Min Exi Min Turns Passed 2246 | 145 869 245 659 328 Spaces Moved 1771 | 61 580 235 642 253 Core 15 | 7 8 . . . Treads . | . . . . . Legs 142 | 54 88 . . . Wheels 1614 | . 484 235 642 253 Hover . | . . . . . Flight . | . . . . . Fastest Speed 50 | 50 80 95 95 110 Average Speed 102 | 130 99 96 101 110 Slowest Speed 200 | 190 200 115 110 125 Overloaded Moves . | . . . . . Propulsion Burnouts . | . . . . . Robots Hopped . | . . . . . Cave-ins Triggered . | . . . . . Exploration Rate (%) 52 | 4 71 33 90 65 Regions Visited 4 Branch Regions 3 Pre-discovered Areas 1 | . . . 1 . Known Exits Taken . | . . . . . Unknown Exits Taken 4 | 1 1 1 1 . Scrap Searched 2 | . . . . 2 Spaces Dug 4 | . 4 . . . Terrain Destroyed 69 | 2 27 6 . 34 Melee . | . . . . . Projectile . | . . . . . AOE 69 | 2 27 6 . 34 Terrain Rammed . | . . . . . Walls Destroyed . | . . . . . Machines Disabled . | . . . . . Actions | -11 -10 -10 -10 -9 --------- Run | Scr Mat Min Exi Min Total 2061 | 91 789 246 651 284 Wait 114 | 2 109 . . 3 Move 1767 | 60 579 234 641 253 Hop . | . . . . . Pick Up 27 | 7 15 1 1 3 Fast Attach 12 | 6 4 . 2 . Attach 10 | . 9 . 1 . Detach 3 | . 1 . 2 . Swap 25 | . 7 6 2 10 Drop 16 | . 9 2 2 3 Fire 85 | 16 54 3 . 12 Melee 2 | . 2 . . . Ram . | . . . . . Kick . | . . . . . Crush . | . . . . . Escape Stasis . | . . . . . Rewire . | . . . . . Trap . | . . . . . Miscellaneous . | . . . . . Route ------- -11/Scrapyard -10/Materials (discovered 3 exits: [*Mat x2] / *Min) -10/Mines -10/Exiles -9/Mines (discovered 1 exit: [*Mat]) History --------- Turn | Location | Event 33 | -11/Scrapyard | Discovered new exit (range 16) 146 | -11/Scrapyard | Entered Materials 324 | -10/Materials | Core integrity fell below 50% 331 | -10/Materials | Build established: Mutant 367 | -10/Materials | Lost 6 parts (1p3n2w) 414 | -10/Materials | Repaired EM Pulse Gun 701 | -10/Materials | Discovered new exit (range 12) 888 | -10/Materials | Discovered new exit (range 14) 924 | -10/Materials | Core integrity fell below 20% 968 | -10/Materials | Discovered new exit (range 10) 1015 | -10/Materials | Entered Mines 1097 | -10/Mines | Assembled infested the area 1202 | -10/Mines | Learned 2 Materials zone layouts 1238 | -10/Mines | Met a Derelict who couldn't figure out how to use a Trap Extractor 1257 | -10/Mines | Discovered new exit (range 5) 1260 | -10/Mines | Entered Exiles 1284 | -10/Exiles | Met 8R-AWN 1300 | -10/Exiles | Met EX-HEX 1336 | -10/Exiles | Met EX-BIN 1347 | -10/Exiles | Met EX-DEC 1370 | -10/Exiles | Learned location of Zion (-7) 1432 | -10/Exiles | Visited The Gauntlet 1554 | -10/Exiles | Discovered new exit (range 14) 1692 | -10/Exiles | Aligned with FarCom system 1693 | -10/Exiles | Given EX-Vault access code 1745 | -10/Exiles | Opened EX-Vault 1799 | -10/Exiles | Found Prototype Special Weapon 1799 | -10/Exiles | Identified Field Lobotomy Kit 1803 | -10/Exiles | Found Prototype Energy Cannon 1803 | -10/Exiles | Identified Latent Energy Streamer 1832 | -10/Exiles | Warned to stay clear of 0b10 Research branches 1919 | -10/Exiles | Left Exiles lab with Latent Energy Streamer 1919 | -10/Exiles | Entered Mines 2242 | -9/Mines | Discovered new exit (range 9) 2247 | -9/Mines | Destroyed by S-10 Pest with Light Assault Rifle Last Messages --------------- 02088_ Extracted 10 matter. 02088_ U-05 Engineer lays Concrete. 02089_ U-05 Engineer builds a Wall. 02092_ U-05 Engineer lays Concrete. 02092_ K-01 Serf collects debris. 02093_ U-05 Engineer lays Concrete. 02095_ U-05 Engineer builds a Wall. 02095_ K-01 Serf collects debris. 02096_ U-05 Engineer lays Concrete. 02098_ R-06 Scavenger collects Lgt. Assault Rifle. 02099_ K-01 Serf collects debris. 02099_ U-05 Engineer lays Concrete. 02119_ Acquired derelict log, extracted data. Data stored: Lower Caves entrances (x1). 02124_ T-07 Excavator destroyed. 02130_ Dropped Lgt. Assault Rifle. 02154_ K-01 Serf collects debris. 02242_ EXIT=FOUND 02244_ Grenade Launcher destroyed. [Achievement: Just Browsing] Map ----- +----------------------------------------------------+ | #?????????????????????????? | | ## ################ #?????????????????????????? | | ?# #??????????????# #?????????????????????????? | | ?# #??????????????# #?????????????????????????? | | ## ########???????# #?????????????????????????? | | #?????# #?????????????????????????? | | """ """ #?????# #?????????????????????????? | | """ """?????????# #?????????????????????????? | | """ """ ????????# #?????????????????????????? | | ????????# #?????????????????????????? | | """ """ ????????# #?????????????????????????? | | """ """?????????# ###???????????????????????? | | """ """????????## ######??????????????????? | | ???????## ##?????????????????? | | #####??#????????# ##????????????????? | | ????????????????# #????????????????? | | ????????????????### #????????????????? | | #############?????## #????????????????? | | #??????###### #????????????????? | | #???????????## #????????????????? | | """ """ #???????????## ##????????????????? | | " """ """ #??????????## #?????????????????? | | """ """ #??????????# #?????????????????? | | = #??????????# #?????????????????? | | !""" """ #??????????# ######????????????? | | * """ """ #??????????# @ #???????????? | | =""" """ #?????????# sss